[Event "*** Titled Tuesday Blitz"]
[Site "Chess.com"]
[Date "2020.05.19"]
[Round "9"]
[White "ZEN-22"]
[Black "Tormoz"]
[Result "1-0"]
[WhiteElo "2535"]
[BlackElo "2667"]
[TimeControl "180+1"]
[EndTime "13:45:22 PDT"]
[Termination "ZEN-22 won by resignation"]

1. b3 {[%clk 0:02:59.9]} 1... d5 {[%clk 0:02:58.9]} 2. Bb2 {[%clk 0:03:00.8]}
2... Bg4 {[%clk 0:02:59]} 3. h3 {[%clk 0:03:00.2]} 3... Bh5 {[%clk 0:02:58.2]}
4. g3 {[%clk 0:03:00.6]} 4... Nc6 {[%clk 0:02:57.3]} 5. Bg2 {[%clk 0:03:01.2]}
5... e5 {[%clk 0:02:57.3]} 6. d3 {[%clk 0:02:57.7]} 6... f5 {[%clk 0:02:56.7]}
7. Nd2 {[%clk 0:02:57.5]} 7... Nf6 {[%clk 0:02:54.9]} 8. g4 {[%clk 0:02:57.6]}
8... fxg4 {[%clk 0:02:54.4]} 9. hxg4 {[%clk 0:02:58.3]} 9... Bxg4 {[%clk
0:02:54.8]} 10. Ngf3 {[%clk 0:02:56.4]} 10... Bd6 {[%clk 0:02:51.6]} 11. c4
{[%clk 0:02:53.4]} 11... e4 {[%clk 0:02:22.3]} 12. cxd5 {[%clk 0:02:51.8]} 12...
exf3 {[%clk 0:02:20.9]} 13. exf3 {[%clk 0:02:51.7]} 13... Ne5 {[%clk 0:02:09.9]}
14. fxg4 {[%clk 0:02:32.9]} 14... Nxd3+ {[%clk 0:02:09.6]} 15. Kf1 {[%clk
0:02:32.7]} 15... Nxb2 {[%clk 0:02:09.3]} 16. Qc2 {[%clk 0:02:32.4]} 16... Nxg4
{[%clk 0:01:47.6]} 17. Re1+ {[%clk 0:02:25.2]} 17... Be5 {[%clk 0:01:34.3]} 18.
Qf5 {[%clk 0:02:09.5]} 18... Qf6 {[%clk 0:01:06.8]} 19. Qxg4 {[%clk 0:02:06.9]}
19... O-O {[%clk 0:01:01.8]} 20. Ne4 {[%clk 0:02:06.1]} 20... Qa6+ {[%clk
0:01:01.7]} 21. Kg1 {[%clk 0:02:04.8]} 21... Rae8 {[%clk 0:00:49.5]} 22. d6
{[%clk 0:01:47.9]} 22... cxd6 {[%clk 0:00:25]} 23. Ng5 {[%clk 0:01:41.7]} 23...
Qa5 {[%clk 0:00:24.1]} 24. Re3 {[%clk 0:01:21]} 24... h6 {[%clk 0:00:17.2]} 25.
Rxh6 {[%clk 0:01:14]} 25... Rf4 {[%clk 0:00:14.4]} 26. Rh8+ {[%clk 0:01:11.9]}
26... Kxh8 {[%clk 0:00:14.6]} 27. Qh5+ {[%clk 0:01:11.8]} 27... Kg8 {[%clk
0:00:15.3]} 28. Qxe8+ {[%clk 0:01:11.5]} 28... Rf8 {[%clk 0:00:14.3]} 29. Qe6+
{[%clk 0:01:11.2]} 1-0

[Event "*** Titled Tuesday Blitz"]
[Site "Chess.com"]
[Date "2020.05.19"]
[Round "9"]
[White "ManuDavid2910"]
[Black "BocharovD"]
[Result "1-0"]
[WhiteElo "2709"]
[BlackElo "2840"]
[TimeControl "180+1"]
[EndTime "13:45:25 PDT"]
[Termination "ManuDavid2910 won by resignation"]

1. e4 {[%clk 0:03:00.9]} 1... c5 {[%clk 0:02:59.5]} 2. Nf3 {[%clk 0:03:01.1]}
2... e6 {[%clk 0:03:00.1]} 3. Nc3 {[%clk 0:03:01.2]} 3... a6 {[%clk 0:02:59.9]}
4. g3 {[%clk 0:03:01.3]} 4... d6 {[%clk 0:02:49.5]} 5. Bg2 {[%clk 0:03:01.1]}
5... Nf6 {[%clk 0:02:50.1]} 6. O-O {[%clk 0:03:00.6]} 6... Be7 {[%clk
0:02:50.5]} 7. d4 {[%clk 0:03:00.8]} 7... cxd4 {[%clk 0:02:51.4]} 8. Nxd4 {[%clk
0:03:01.3]} 8... O-O {[%clk 0:02:51.7]} 9. Kh1 {[%clk 0:03:01.7]} 9... Nc6
{[%clk 0:02:51.1]} 10. f4 {[%clk 0:02:58.9]} 10... Bd7 {[%clk 0:02:47.8]} 11.
Be3 {[%clk 0:02:58.4]} 11... Qc7 {[%clk 0:02:47.1]} 12. Nb3 {[%clk 0:02:57.6]}
12... b5 {[%clk 0:02:45.5]} 13. a3 {[%clk 0:02:55.3]} 13... Rfd8 {[%clk
0:02:25.9]} 14. Qe2 {[%clk 0:02:54.1]} 14... Be8 {[%clk 0:02:22.2]} 15. Rad1
{[%clk 0:02:52.5]} 15... Rab8 {[%clk 0:02:08.6]} 16. g4 {[%clk 0:02:11.8]} 16...
b4 {[%clk 0:02:06.5]} 17. axb4 {[%clk 0:02:09.9]} 17... Nxb4 {[%clk 0:02:07.4]}
18. g5 {[%clk 0:02:08.5]} 18... Nd7 {[%clk 0:02:07.8]} 19. f5 {[%clk 0:02:06.6]}
19... Ne5 {[%clk 0:02:07.8]} 20. Nd4 {[%clk 0:01:55.3]} 20... Qc4 {[%clk
0:02:04.1]} 21. fxe6 {[%clk 0:01:23.1]} 21... fxe6 {[%clk 0:02:03.6]} 22. Bh3
{[%clk 0:01:23.3]} 22... Bd7 {[%clk 0:02:03.7]} 23. Qh5 {[%clk 0:01:16.6]} 23...
Nxc2 {[%clk 0:01:49.7]} 24. Nxc2 {[%clk 0:01:07.7]} 24... Rxb2 {[%clk
0:01:48.9]} 25. Bd4 {[%clk 0:01:06.6]} 25... Be8 {[%clk 0:01:45.3]} 26. Ne3
{[%clk 0:00:38.1]} 26... Qxf1+ {[%clk 0:01:35.7]} 27. Rxf1 {[%clk 0:00:39]}
27... Bxh5 {[%clk 0:01:36.1]} 28. Bxe6+ {[%clk 0:00:39.9]} 28... Kh8 {[%clk
0:01:35.9]} 29. Ncd5 {[%clk 0:00:39.8]} 29... Bxg5 {[%clk 0:01:32.7]} 30. Bxb2
{[%clk 0:00:38.5]} 30... Bf3+ {[%clk 0:01:24.5]} 31. Kg1 {[%clk 0:00:38]} 31...
Bxe4 {[%clk 0:01:24.6]} 32. Nf5 {[%clk 0:00:36.7]} 32... Nf3+ {[%clk 0:01:21]}
33. Rxf3 {[%clk 0:00:36]} 1-0

[Event "*** Titled Tuesday Blitz"]
[Site "Chess.com"]
[Date "2020.05.19"]
[Round "9"]
[White "j2806"]
[Black "PawnEatingZombie"]
[Result "1-0"]
[WhiteElo "2036"]
[BlackElo "2221"]
[TimeControl "180+1"]
[EndTime "13:45:25 PDT"]
[Termination "j2806 won by resignation"]

1. e4 {[%clk 0:02:59.9]} 1... c6 {[%clk 0:02:57.9]} 2. d4 {[%clk 0:02:59.3]}
2... d5 {[%clk 0:02:58.4]} 3. exd5 {[%clk 0:02:59.9]} 3... cxd5 {[%clk
0:02:58.2]} 4. Bd3 {[%clk 0:03:00.3]} 4... Nc6 {[%clk 0:02:57.7]} 5. c3 {[%clk
0:03:00.3]} 5... Qc7 {[%clk 0:02:58.3]} 6. h3 {[%clk 0:02:57]} 6... Nf6 {[%clk
0:02:55.2]} 7. Nf3 {[%clk 0:02:57]} 7... g6 {[%clk 0:02:54.9]} 8. O-O {[%clk
0:02:56.9]} 8... Bg7 {[%clk 0:02:50.7]} 9. Re1 {[%clk 0:02:57.2]} 9... O-O
{[%clk 0:02:50]} 10. Nbd2 {[%clk 0:02:54.8]} 10... Bf5 {[%clk 0:02:49.4]} 11.
Bxf5 {[%clk 0:02:50.2]} 11... gxf5 {[%clk 0:02:50.3]} 12. Ne5 {[%clk 0:02:50.7]}
12... e6 {[%clk 0:02:42.5]} 13. Ndf3 {[%clk 0:02:49.7]} 13... Ne4 {[%clk
0:02:35.4]} 14. Bf4 {[%clk 0:02:41.8]} 14... Qd8 {[%clk 0:02:25.6]} 15. Qc1
{[%clk 0:02:35.6]} 15... Rc8 {[%clk 0:02:10.2]} 16. Nxc6 {[%clk 0:02:18.8]}
16... bxc6 {[%clk 0:02:07.6]} 17. Ne5 {[%clk 0:02:18.3]} 17... c5 {[%clk
0:01:58.4]} 18. Qd1 {[%clk 0:02:09.3]} 18... cxd4 {[%clk 0:01:47.3]} 19. cxd4
{[%clk 0:02:07.2]} 19... Qe7 {[%clk 0:01:23.8]} 20. f3 {[%clk 0:01:56.9]} 20...
Nf6 {[%clk 0:01:22.7]} 21. Rc1 {[%clk 0:01:56.3]} 21... Qb4 {[%clk 0:01:11.5]}
22. Qd2 {[%clk 0:01:43.5]} 22... Qxd2 {[%clk 0:01:06.8]} 23. Bxd2 {[%clk
0:01:43.4]} 23... Rfe8 {[%clk 0:00:56.8]} 24. Kf2 {[%clk 0:01:40.7]} 24... Bf8
{[%clk 0:00:38]} 25. Ke3 {[%clk 0:01:23.4]} 25... Bh6+ {[%clk 0:00:29.3]} 26.
Kd3 {[%clk 0:01:23.4]} 26... Bxd2 {[%clk 0:00:28.7]} 27. Kxd2 {[%clk 0:01:23.7]}
27... Nh5 {[%clk 0:00:27.3]} 28. Rc3 {[%clk 0:01:09.3]} 28... Rxc3 {[%clk
0:00:26.1]} 29. bxc3 {[%clk 0:01:08.9]} 29... Rb8 {[%clk 0:00:25.4]} 30. Kc2
{[%clk 0:01:08.1]} 30... Kf8 {[%clk 0:00:21.3]} 31. g4 {[%clk 0:01:07.1]} 31...
Nf4 {[%clk 0:00:19.1]} 32. Nd7+ {[%clk 0:01:02.2]} 1-0

[Event "*** Titled Tuesday Blitz"]
[Site "Chess.com"]
[Date "2020.05.19"]
[Round "9"]
[White "Nayemhaque22"]
[Black "MathiasWomacka"]
[Result "1-0"]
[WhiteElo "2202"]
[BlackElo "2360"]
[TimeControl "180+1"]
[EndTime "13:45:31 PDT"]
[Termination "Nayemhaque22 won by resignation"]

1. e4 {[%clk 0:02:59.7]} 1... c5 {[%clk 0:03:00]} 2. Nf3 {[%clk 0:02:59]} 2...
d6 {[%clk 0:03:00]} 3. d4 {[%clk 0:02:59]} 3... cxd4 {[%clk 0:03:00.9]} 4. Nxd4
{[%clk 0:02:59.9]} 4... Nf6 {[%clk 0:03:01.3]} 5. Nc3 {[%clk 0:02:59.8]} 5... a6
{[%clk 0:03:01.6]} 6. h3 {[%clk 0:02:59.8]} 6... e6 {[%clk 0:03:01.1]} 7. Be3
{[%clk 0:02:59.6]} 7... Be7 {[%clk 0:02:54.9]} 8. g4 {[%clk 0:02:59.6]} 8... b5
{[%clk 0:02:54.4]} 9. g5 {[%clk 0:02:59.2]} 9... Nfd7 {[%clk 0:02:53.6]} 10. a3
{[%clk 0:02:53.7]} 10... Bxg5 {[%clk 0:02:50.5]} 11. Nxe6 {[%clk 0:02:50.2]}
11... fxe6 {[%clk 0:02:47.2]} 12. Qh5+ {[%clk 0:02:49.5]} 12... g6 {[%clk
0:02:46.4]} 13. Qxg5 {[%clk 0:02:49.4]} 13... Qxg5 {[%clk 0:02:46.2]} 14. Bxg5
{[%clk 0:02:48.5]} 14... Bb7 {[%clk 0:02:20.5]} 15. O-O-O {[%clk 0:02:47]} 15...
h6 {[%clk 0:02:12.5]} 16. Bh4 {[%clk 0:02:36.3]} 16... Nc5 {[%clk 0:01:52]} 17.
Rxd6 {[%clk 0:02:12]} 17... g5 {[%clk 0:01:40.9]} 18. Bg3 {[%clk 0:02:10.4]}
18... Ke7 {[%clk 0:01:41.1]} 19. Bg2 {[%clk 0:01:59.2]} 19... Nbd7 {[%clk
0:01:38]} 20. Rhd1 {[%clk 0:01:58.9]} 20... Rad8 {[%clk 0:01:20.5]} 21. b4
{[%clk 0:01:44.7]} 21... Na4 {[%clk 0:01:13.5]} 22. Nxa4 {[%clk 0:01:44.3]}
22... bxa4 {[%clk 0:01:14.4]} 23. Kb2 {[%clk 0:01:34.7]} 23... e5 {[%clk
0:01:03.1]} 24. c4 {[%clk 0:01:31.3]} 24... Nf6 {[%clk 0:00:44]} 25. Bxe5 {[%clk
0:00:45.6]} 25... Nxe4 {[%clk 0:00:41.6]} 26. Bxe4 {[%clk 0:00:44.5]} 26... Bxe4
{[%clk 0:00:40.7]} 27. Bf6+ {[%clk 0:00:42.5]} 1-0

[Event "*** Titled Tuesday Blitz"]
[Site "Chess.com"]
[Date "2020.05.19"]
[Round "9"]
[White "Lion-Al-Messi"]
[Black "tsvet2005"]
[Result "0-1"]
[WhiteElo "2338"]
[BlackElo "2521"]
[TimeControl "180+1"]
[EndTime "13:45:34 PDT"]
[Termination "tsvet2005 won on time"]

1. e4 {[%clk 0:02:32.9]} 1... c5 {[%clk 0:02:56.7]} 2. Nf3 {[%clk 0:02:32.7]}
2... d6 {[%clk 0:02:57]} 3. d4 {[%clk 0:02:32.5]} 3... cxd4 {[%clk 0:02:57.9]}
4. Nxd4 {[%clk 0:02:33]} 4... Nf6 {[%clk 0:02:58.8]} 5. Nc3 {[%clk 0:02:32.8]}
5... a6 {[%clk 0:02:59.3]} 6. h3 {[%clk 0:02:32.1]} 6... e5 {[%clk 0:02:59.2]}
7. Nde2 {[%clk 0:02:31.2]} 7... b5 {[%clk 0:02:59.1]} 8. Bg5 {[%clk 0:02:25.5]}
8... Nbd7 {[%clk 0:02:56.9]} 9. Nd5 {[%clk 0:02:14.7]} 9... Bb7 {[%clk
0:02:56.9]} 10. g3 {[%clk 0:02:07.3]} 10... Rc8 {[%clk 0:02:50.7]} 11. Bg2
{[%clk 0:02:06.5]} 11... h6 {[%clk 0:02:43.9]} 12. Be3 {[%clk 0:02:06]} 12...
Nxd5 {[%clk 0:02:40.6]} 13. exd5 {[%clk 0:02:06.9]} 13... Be7 {[%clk 0:02:41.1]}
14. O-O {[%clk 0:02:06]} 14... O-O {[%clk 0:02:39.4]} 15. a4 {[%clk 0:02:03.6]}
15... Nb6 {[%clk 0:02:31.4]} 16. axb5 {[%clk 0:02:00.4]} 16... axb5 {[%clk
0:02:32.3]} 17. Nc3 {[%clk 0:01:59]} 17... b4 {[%clk 0:02:28.6]} 18. Bxb6 {[%clk
0:01:47.2]} 18... Qxb6 {[%clk 0:02:29.5]} 19. Ne4 {[%clk 0:01:46.4]} 19... Qc7
{[%clk 0:02:23.3]} 20. c3 {[%clk 0:01:43.7]} 20... f5 {[%clk 0:02:18.4]} 21. Nd2
{[%clk 0:01:40.2]} 21... bxc3 {[%clk 0:02:18.9]} 22. Rc1 {[%clk 0:01:38.5]}
22... c2 {[%clk 0:02:13.8]} 23. Qe2 {[%clk 0:01:30.4]} 23... Qc5 {[%clk
0:02:02.6]} 24. Qd3 {[%clk 0:01:27.1]} 24... e4 {[%clk 0:01:57]} 25. Qe2 {[%clk
0:00:39.5]} 25... Bxd5 {[%clk 0:01:39.5]} 26. Kh2 {[%clk 0:00:39.7]} 26... Bf6
{[%clk 0:01:38.8]} 27. b3 {[%clk 0:00:28.5]} 27... Bb2 {[%clk 0:01:34.4]} 28.
Nc4 {[%clk 0:00:05.8]} 28... Bxc1 {[%clk 0:01:25.1]} 29. Rxc1 {[%clk 0:00:04.1]}
29... Bxc4 {[%clk 0:01:25.3]} 30. bxc4 {[%clk 0:00:03.6]} 30... Qxc4 {[%clk
0:01:26.1]} 31. Qd2 {[%clk 0:00:02.2]} 31... d5 {[%clk 0:01:24]} 32. Bf1 {[%clk
0:00:01.7]} 32... Qc5 {[%clk 0:01:24.2]} 33. Qf4 {[%clk 0:00:01.6]} 33... d4
{[%clk 0:01:23.2]} 0-1

[Event "*** Titled Tuesday Blitz"]
[Site "Chess.com"]
[Date "2020.05.19"]
[Round "9"]
[White "Klavdia_Nik"]
[Black "mshuaau0"]
[Result "0-1"]
[WhiteElo "2037"]
[BlackElo "2233"]
[TimeControl "180+1"]
[EndTime "13:45:37 PDT"]
[Termination "mshuaau0 won on time"]

1. Nf3 {[%clk 0:03:00.9]} 1... d5 {[%clk 0:02:59.9]} 2. c4 {[%clk 0:03:00.9]}
2... dxc4 {[%clk 0:02:59.4]} 3. Na3 {[%clk 0:02:56]} 3... Be6 {[%clk 0:02:55.4]}
4. e3 {[%clk 0:02:53.9]} 4... Nd7 {[%clk 0:02:52.5]} 5. Nxc4 {[%clk 0:02:49.1]}
5... Nb6 {[%clk 0:02:52.7]} 6. b3 {[%clk 0:02:46.3]} 6... Nf6 {[%clk 0:02:50]}
7. Bb2 {[%clk 0:02:44.9]} 7... Bd5 {[%clk 0:02:43.3]} 8. Be2 {[%clk 0:02:43.2]}
8... e6 {[%clk 0:02:43]} 9. O-O {[%clk 0:02:41.7]} 9... Be7 {[%clk 0:02:43.2]}
10. d4 {[%clk 0:02:23.1]} 10... O-O {[%clk 0:02:37.2]} 11. Rc1 {[%clk
0:02:15.4]} 11... Rc8 {[%clk 0:02:34.4]} 12. Bd3 {[%clk 0:02:10]} 12... Be4
{[%clk 0:02:33.1]} 13. Bxe4 {[%clk 0:01:54.7]} 13... Nxe4 {[%clk 0:02:34]} 14.
Qc2 {[%clk 0:01:53]} 14... Nd6 {[%clk 0:02:29.2]} 15. e4 {[%clk 0:01:40.4]}
15... Nbxc4 {[%clk 0:02:24.1]} 16. bxc4 {[%clk 0:01:38.2]} 16... c5 {[%clk
0:02:23.1]} 17. d5 {[%clk 0:01:35]} 17... exd5 {[%clk 0:02:15.4]} 18. exd5
{[%clk 0:01:19.3]} 18... Bf6 {[%clk 0:02:13.3]} 19. Rfe1 {[%clk 0:01:07.8]}
19... Bxb2 {[%clk 0:02:08.1]} 20. Qxb2 {[%clk 0:01:06.9]} 20... Re8 {[%clk
0:01:58.7]} 21. Rxe8+ {[%clk 0:00:57]} 21... Qxe8 {[%clk 0:01:59.6]} 22. Re1
{[%clk 0:00:55.5]} 22... Qa4 {[%clk 0:01:57.6]} 23. Qb3 {[%clk 0:00:42.6]} 23...
Qxb3 {[%clk 0:01:41.3]} 24. axb3 {[%clk 0:00:41.5]} 24... Kf8 {[%clk 0:01:39.9]}
25. Ne5 {[%clk 0:00:35.2]} 25... b5 {[%clk 0:01:34.1]} 26. Rc1 {[%clk 0:00:10]}
26... bxc4 {[%clk 0:01:30.2]} 27. bxc4 {[%clk 0:00:09.3]} 27... a5 {[%clk
0:01:16.9]} 28. Nc6 {[%clk 0:00:04.1]} 28... a4 {[%clk 0:01:11.4]} 0-1

[Event "*** Titled Tuesday Blitz"]
[Site "Chess.com"]
[Date "2020.05.19"]
[Round "9"]
[White "jlandaw"]
[Black "DarkAlekhine"]
[Result "0-1"]
[WhiteElo "2483"]
[BlackElo "2627"]
[TimeControl "180+1"]
[EndTime "13:45:38 PDT"]
[Termination "DarkAlekhine won by resignation"]

1. e4 {[%clk 0:03:00.9]} 1... Nf6 {[%clk 0:03:00]} 2. d3 {[%clk 0:02:59.4]} 2...
d5 {[%clk 0:02:56.7]} 3. Nd2 {[%clk 0:02:59.1]} 3... e5 {[%clk 0:02:54.8]} 4.
Ngf3 {[%clk 0:02:59.2]} 4... Nc6 {[%clk 0:02:54.5]} 5. Be2 {[%clk 0:02:51.4]}
5... Bc5 {[%clk 0:02:54.6]} 6. O-O {[%clk 0:02:51.3]} 6... O-O {[%clk
0:02:54.8]} 7. c3 {[%clk 0:02:51.8]} 7... a5 {[%clk 0:02:54.7]} 8. Qc2 {[%clk
0:02:51.5]} 8... Re8 {[%clk 0:02:54.6]} 9. h3 {[%clk 0:02:48]} 9... h6 {[%clk
0:02:54.5]} 10. Re1 {[%clk 0:02:48.1]} 10... Be6 {[%clk 0:02:50.6]} 11. Nf1
{[%clk 0:02:47.7]} 11... d4 {[%clk 0:02:48.9]} 12. g4 {[%clk 0:02:35.9]} 12...
h5 {[%clk 0:02:10]} 13. Ng5 {[%clk 0:02:24.5]} 13... hxg4 {[%clk 0:02:05.2]} 14.
Nxe6 {[%clk 0:02:20.2]} 14... Rxe6 {[%clk 0:02:06.1]} 15. Bg5 {[%clk 0:02:13.6]}
15... dxc3 {[%clk 0:01:43.7]} 16. Bxg4 {[%clk 0:02:09.5]} 16... Bxf2+ {[%clk
0:01:34.4]} 17. Qxf2 {[%clk 0:01:41.4]} 17... Nxg4 {[%clk 0:01:30.8]} 18. Bxd8
{[%clk 0:01:37.7]} 18... Nxf2 {[%clk 0:01:30.4]} 19. Kxf2 {[%clk 0:01:38]} 19...
Rxd8 {[%clk 0:01:25.7]} 20. bxc3 {[%clk 0:01:35.6]} 20... Rxd3 {[%clk
0:01:25.8]} 21. Re3 {[%clk 0:01:35.8]} 21... Rd8 {[%clk 0:01:21.1]} 22. Ke2
{[%clk 0:01:19]} 22... Red6 {[%clk 0:01:15.6]} 23. Rg3 {[%clk 0:01:14.6]} 23...
Ne7 {[%clk 0:01:13.7]} 24. Ne3 {[%clk 0:01:09.9]} 24... Rd2+ {[%clk 0:01:10.5]}
25. Kf3 {[%clk 0:01:08.9]} 25... R8d3 {[%clk 0:01:08.7]} 26. Rag1 {[%clk
0:01:01.7]} 26... Ng6 {[%clk 0:01:06.5]} 27. Kg4 {[%clk 0:00:51]} 27... Re2
{[%clk 0:01:06.6]} 28. Nd5 {[%clk 0:00:47]} 28... Rxe4+ {[%clk 0:01:03.3]} 29.
Kf5 {[%clk 0:00:46.8]} 29... Rxg3 {[%clk 0:00:58.2]} 30. Rxg3 {[%clk 0:00:47.7]}
30... Ra4 {[%clk 0:00:57.3]} 31. Rg4 {[%clk 0:00:39.7]} 31... Rxa2 {[%clk
0:00:52.7]} 32. Nxc7 {[%clk 0:00:39.7]} 32... a4 {[%clk 0:00:46.1]} 33. h4
{[%clk 0:00:39.9]} 33... a3 {[%clk 0:00:42.1]} 34. h5 {[%clk 0:00:40.3]} 34...
Rf2+ {[%clk 0:00:41.6]} 35. Ke4 {[%clk 0:00:39.3]} 35... Rf4+ {[%clk 0:00:42]}
0-1

[Event "*** Titled Tuesday Blitz"]
[Site "Chess.com"]
[Date "2020.05.19"]
[Round "9"]
[White "Gennady_Kozlov"]
[Black "zmeeed67"]
[Result "0-1"]
[WhiteElo "2566"]
[BlackElo "2416"]
[TimeControl "180+1"]
[EndTime "13:45:38 PDT"]
[Termination "zmeeed67 won by checkmate"]

1. b3 {[%clk 0:03:00.9]} 1... d5 {[%clk 0:02:56.2]} 2. Bb2 {[%clk 0:03:01.8]}
2... Nf6 {[%clk 0:02:55.2]} 3. e3 {[%clk 0:03:02]} 3... c5 {[%clk 0:02:53.7]} 4.
f4 {[%clk 0:03:02.3]} 4... g6 {[%clk 0:02:49]} 5. Nf3 {[%clk 0:03:03.2]} 5...
Bg7 {[%clk 0:02:49.3]} 6. Be2 {[%clk 0:03:04.1]} 6... O-O {[%clk 0:02:49.2]} 7.
O-O {[%clk 0:03:04.8]} 7... d4 {[%clk 0:02:49.5]} 8. Ne5 {[%clk 0:03:03.5]} 8...
dxe3 {[%clk 0:02:43.5]} 9. dxe3 {[%clk 0:03:03.2]} 9... Bf5 {[%clk 0:02:43.8]}
10. Bd3 {[%clk 0:03:01.6]} 10... Nbd7 {[%clk 0:02:32.8]} 11. Nxd7 {[%clk
0:02:58.3]} 11... Qxd7 {[%clk 0:02:18.3]} 12. Bxf5 {[%clk 0:02:56.2]} 12... Qxf5
{[%clk 0:02:13.6]} 13. Na3 {[%clk 0:02:56.2]} 13... Rfd8 {[%clk 0:02:03.6]} 14.
Qf3 {[%clk 0:02:56.2]} 14... Ne4 {[%clk 0:01:48.7]} 15. Bxg7 {[%clk 0:02:51]}
15... Kxg7 {[%clk 0:01:41.4]} 16. g4 {[%clk 0:02:46.7]} 16... Qd5 {[%clk
0:01:30.4]} 17. Rad1 {[%clk 0:02:41.7]} 17... Qc6 {[%clk 0:01:29.9]} 18. Nc4
{[%clk 0:02:40.2]} 18... f6 {[%clk 0:01:08.2]} 19. g5 {[%clk 0:02:34.1]} 19...
Qe6 {[%clk 0:00:31.7]} 20. gxf6+ {[%clk 0:02:26.2]} 20... exf6 {[%clk
0:00:32.6]} 21. Rd3 {[%clk 0:02:22.6]} 21... b5 {[%clk 0:00:27]} 22. Rfd1 {[%clk
0:02:17.7]} 22... Re8 {[%clk 0:00:17.6]} 23. Rd7+ {[%clk 0:02:15]} 23... Re7
{[%clk 0:00:16.1]} 24. Rxe7+ {[%clk 0:02:04.6]} 24... Qxe7 {[%clk 0:00:17]} 25.
Nd6 {[%clk 0:02:04.7]} 25... Nxd6 {[%clk 0:00:08.3]} 26. Qxa8 {[%clk 0:02:03.4]}
26... Qxe3+ {[%clk 0:00:08.7]} 27. Kf1 {[%clk 0:02:03.4]} 27... Ne4 {[%clk
0:00:07.1]} 28. Rd7+ {[%clk 0:01:57]} 28... Kh6 {[%clk 0:00:07.2]} 29. Qf8+
{[%clk 0:01:57.4]} 29... Kh5 {[%clk 0:00:07.4]} 30. Rd5+ {[%clk 0:01:57.2]}
30... Kg4 {[%clk 0:00:03]} 31. Rg5+ {[%clk 0:01:54]} 31... fxg5 {[%clk
0:00:02.7]} 32. Qc8+ {[%clk 0:01:53.5]} 32... Kxf4 {[%clk 0:00:02.2]} 33. Qc7+
{[%clk 0:01:53.1]} 33... Kg4 {[%clk 0:00:02.5]} 34. Qd7+ {[%clk 0:01:52.3]}
34... Kh5 {[%clk 0:00:02]} 35. Qxh7+ {[%clk 0:01:51.7]} 35... Kg4 {[%clk
0:00:01.7]} 36. Qd7+ {[%clk 0:01:51.9]} 36... Kf3 {[%clk 0:00:02]} 37. Qf7+
{[%clk 0:01:40]} 37... Qf4 {[%clk 0:00:01.5]} 38. Qd7 {[%clk 0:01:33]} 38...
Ke3+ {[%clk 0:00:01.6]} 39. Kg2 {[%clk 0:01:33.3]} 39... Qf2+ {[%clk 0:00:01.9]}
40. Kh3 {[%clk 0:01:33.3]} 40... Qf3# {[%clk 0:00:02.4]} 0-1

[Event "*** Titled Tuesday Blitz"]
[Site "Chess.com"]
[Date "2020.05.19"]
[Round "9"]
[White "kasparicy"]
[Black "lupta_robin"]
[Result "1/2-1/2"]
[WhiteElo "2420"]
[BlackElo "2600"]
[TimeControl "180+1"]
[EndTime "13:45:41 PDT"]
[Termination "Game drawn by repetition"]

1. e4 {[%clk 0:03:00.9]} 1... c5 {[%clk 0:02:59.8]} 2. Nf3 {[%clk 0:02:57.4]}
2... d6 {[%clk 0:03:00.1]} 3. d4 {[%clk 0:02:57]} 3... cxd4 {[%clk 0:03:01]} 4.
Nxd4 {[%clk 0:02:35.9]} 4... Nf6 {[%clk 0:02:59.3]} 5. Nc3 {[%clk 0:02:35.9]}
5... g6 {[%clk 0:02:59.6]} 6. Be2 {[%clk 0:02:35.2]} 6... Bg7 {[%clk 0:02:59.9]}
7. Be3 {[%clk 0:02:35.6]} 7... O-O {[%clk 0:03:00.2]} 8. Qd2 {[%clk 0:02:26.6]}
8... Nc6 {[%clk 0:03:00.3]} 9. h4 {[%clk 0:02:23.6]} 9... h5 {[%clk 0:02:37.9]}
10. O-O-O {[%clk 0:02:18.8]} 10... Bd7 {[%clk 0:02:19.8]} 11. f3 {[%clk
0:02:16.1]} 11... Rc8 {[%clk 0:02:14.3]} 12. Kb1 {[%clk 0:02:03.9]} 12... Ne5
{[%clk 0:02:10.8]} 13. g4 {[%clk 0:01:57.7]} 13... Nc4 {[%clk 0:02:05.3]} 14.
Bxc4 {[%clk 0:01:55.9]} 14... Rxc4 {[%clk 0:02:03.9]} 15. Nce2 {[%clk
0:01:53.3]} 15... Qc7 {[%clk 0:01:33.1]} 16. Bh6 {[%clk 0:01:49]} 16... Bxh6
{[%clk 0:00:59.7]} 17. Qxh6 {[%clk 0:01:47.6]} 17... e5 {[%clk 0:01:00.2]} 18.
gxh5 {[%clk 0:01:41.5]} 18... Nxh5 {[%clk 0:00:56.2]} 19. Rhg1 {[%clk
0:01:33.3]} 19... exd4 {[%clk 0:00:51.1]} 20. Qxh5 {[%clk 0:01:30.3]} 20... Ba4
{[%clk 0:00:19.8]} 21. Nxd4 {[%clk 0:01:18.4]} 21... Rxd4 {[%clk 0:00:15.4]} 22.
Rxd4 {[%clk 0:01:15.6]} 22... Qxc2+ {[%clk 0:00:15.8]} 23. Ka1 {[%clk
0:01:16.2]} 23... Rc8 {[%clk 0:00:16.1]} 24. Rxg6+ {[%clk 0:00:50.7]} 24... fxg6
{[%clk 0:00:17]} 25. Qxg6+ {[%clk 0:00:51.2]} 25... Kh8 {[%clk 0:00:16.9]} 26.
Qh6+ {[%clk 0:00:46.3]} 26... Kg8 {[%clk 0:00:17.4]} 27. Qg6+ {[%clk 0:00:46.6]}
27... Kh8 {[%clk 0:00:17.1]} 28. Qh6+ {[%clk 0:00:47]} 28... Kg8 {[%clk
0:00:16.8]} 29. Qg6+ {[%clk 0:00:47.9]} 1/2-1/2